[Event "Titled Tuesday Blitz February 01 B 2022"]
[White "Bok, Benjamin"]
[Black "Jobava, Baadur"]
[WhiteFideId "1017063"]
[BlackFideId "13601520"]
[WhiteElo "2658"]
[BlackElo "2617"]
[Result "0-1"]
[Round "09"]
[TimeControl "180+1"]
[Date "2022.02.01"]
[WhiteClock "0:00:02"]
[BlackClock "0:00:16"]

1. d4 {[%clk 0:03:00]}  d5 {[%clk 0:03:00]} 2. c4 {[%clk 0:03:01]}  dxc4 {[%clk 0:03:01]} 3. Nf3 {[%clk 0:03:01]}  Nf6 {[%clk 0:03:01]} 4. e3 {[%clk 0:03:01]}  Bg4 {[%clk 0:03:02]} 5. Bxc4 {[%clk 0:03:01]}  e6 {[%clk 0:03:02]} 6. h3 {[%clk 0:02:57]}  Bh5 {[%clk 0:03:03]} 7. Nc3 {[%clk 0:02:58]}  Nc6 {[%clk 0:03:02]} 8. O-O {[%clk 0:02:53]}  Bd6 {[%clk 0:03:02]} 9. Be2 {[%clk 0:02:29]}  O-O {[%clk 0:03:01]} 10. b3 {[%clk 0:02:17]}  e5 {[%clk 0:02:45]} 11. dxe5 {[%clk 0:01:57]}  Nxe5 {[%clk 0:02:41]} 12. Bb2 {[%clk 0:01:54]}  Bxf3 {[%clk 0:02:22]} 13. Bxf3 {[%clk 0:01:53]}  Nd3 {[%clk 0:02:22]} 14. Rb1 {[%clk 0:01:39]}  Nxb2 {[%clk 0:02:04]} 15. Rxb2 {[%clk 0:01:40]}  Qe7 {[%clk 0:01:55]} 16. Rc2 {[%clk 0:01:27]}  Rad8 {[%clk 0:01:52]} 17. Qe2 {[%clk 0:01:26]}  c6 {[%clk 0:01:52]} 18. Rd1 {[%clk 0:01:22]}  Be5 {[%clk 0:01:48]} 19. g3 {[%clk 0:01:14]}  g6 {[%clk 0:01:47]} 20. Kg2 {[%clk 0:01:08]}  Kg7 {[%clk 0:01:46]} 21. Na4 {[%clk 0:01:03]}  Rxd1 {[%clk 0:01:39]} 22. Qxd1 {[%clk 0:01:04]}  Rd8 {[%clk 0:01:39]} 23. Rd2 {[%clk 0:01:04]}  Rxd2 {[%clk 0:01:39]} 24. Qxd2 {[%clk 0:01:05]}  b5 {[%clk 0:01:40]} 25. Nc3 {[%clk 0:00:55]}  a6 {[%clk 0:01:33]} 26. Ne2 {[%clk 0:00:39]}  c5 {[%clk 0:01:31]} 27. Qa5 {[%clk 0:00:37]}  Qd6 {[%clk 0:01:22]} 28. Bb7 {[%clk 0:00:31]}  Qd1 {[%clk 0:01:20]} 29. Bf3 {[%clk 0:00:30]}  Qd6 {[%clk 0:01:16]} 30. Bb7 {[%clk 0:00:28]}  Qd3 {[%clk 0:00:54]} 31. Bf3 {[%clk 0:00:19]}  Ne4 {[%clk 0:00:25]} 32. Qxa6 {[%clk 0:00:18]}  Nd2 {[%clk 0:00:25]} 33. Qc6 {[%clk 0:00:16]}  Qb1 {[%clk 0:00:23]} 34. Bd5 {[%clk 0:00:02]}  Qf1+ {[%clk 0:00:22]} 35. Kh2 {[%clk 0:00:02]}  Qxf2+ {[%clk 0:00:23]} 36. Kh1 {[%clk 0:00:03]}  Qxe2 {[%clk 0:00:16]} 37. Bg2 {[%clk 0:00:02]}  Qe1+ {[%clk 0:00:16]} 0-1


[Site "https://www.chess.com"]

[Event "Titled Tuesday Blitz February 01 B 2022"]
[White "Bortnyk, Olexandr"]
[Black "Warmerdam, Max"]
[WhiteFideId "14120828"]
[BlackFideId "1048104"]
[WhiteElo "2723"]
[BlackElo "2537"]
[Result "1-0"]
[Round "09"]
[TimeControl "180+1"]
[Date "2022.02.01"]
[WhiteClock "0:02:09"]
[BlackClock "0:02:35"]

1. e4 {[%clk 0:03:00]}  c5 {[%clk 0:02:58]} 2. c3 {[%clk 0:03:00]}  d5 {[%clk 0:02:56]} 3. exd5 {[%clk 0:03:01]}  Nf6 {[%clk 0:02:55]} 4. Nf3 {[%clk 0:02:59]}  Nxd5 {[%clk 0:02:54]} 5. Bc4 {[%clk 0:02:52]}  e6 {[%clk 0:02:54]} 6. O-O {[%clk 0:02:52]}  Be7 {[%clk 0:02:55]} 7. d4 {[%clk 0:02:52]}  cxd4 {[%clk 0:02:49]} 8. Qxd4 {[%clk 0:02:48]}  Nc6 {[%clk 0:02:45]} 9. Qxg7 {[%clk 0:02:44]}  Bf6 {[%clk 0:02:46]} 10. Qg3 {[%clk 0:02:44]}  b6 {[%clk 0:02:43]} 11. Bh6 {[%clk 0:02:37]}  Bb7 {[%clk 0:02:43]} 12. Nbd2 {[%clk 0:02:35]}  Nce7 {[%clk 0:02:42]} 13. Bb5+ {[%clk 0:02:15]}  Bc6 {[%clk 0:02:42]} 14. Bxc6+ {[%clk 0:02:15]}  Nxc6 {[%clk 0:02:42]} 15. Ne4 {[%clk 0:02:15]}  Qe7 {[%clk 0:02:41]} 16. c4 {[%clk 0:02:09]}  Nc7 {[%clk 0:02:35]} 17. Nxf6+ {[%clk 0:02:09]} 1-0


[Site "https://www.chess.com"]

[Event "Titled Tuesday Blitz February 01 B 2022"]
[White "Carlsson, Ludvig"]
[Black "Tregubov, Pavel V."]
[WhiteFideId "1727010"]
[BlackFideId "4115341"]
[WhiteElo "2178"]
[BlackElo "2341"]
[Result "1/2-1/2"]
[Round "09"]
[TimeControl "180+1"]
[Date "2022.02.01"]
[WhiteClock "0:00:06"]
[BlackClock "0:00:27"]

1. e4 {[%clk 0:03:00]}  e6 {[%clk 0:02:59]} 2. d3 {[%clk 0:02:59]}  c5 {[%clk 0:02:57]} 3. Nf3 {[%clk 0:02:58]}  Nc6 {[%clk 0:02:57]} 4. g3 {[%clk 0:02:58]}  g6 {[%clk 0:02:56]} 5. Bg2 {[%clk 0:02:58]}  Bg7 {[%clk 0:02:57]} 6. O-O {[%clk 0:02:59]}  Nge7 {[%clk 0:02:57]} 7. c3 {[%clk 0:02:58]}  O-O {[%clk 0:02:57]} 8. Re1 {[%clk 0:02:58]}  d6 {[%clk 0:02:55]} 9. d4 {[%clk 0:02:57]}  cxd4 {[%clk 0:02:55]} 10. cxd4 {[%clk 0:02:58]}  d5 {[%clk 0:02:55]} 11. e5 {[%clk 0:02:57]}  Nf5 {[%clk 0:02:54]} 12. Nc3 {[%clk 0:02:56]}  Qb6 {[%clk 0:02:54]} 13. Na4 {[%clk 0:02:55]}  Qc7 {[%clk 0:02:50]} 14. Bf4 {[%clk 0:02:47]}  b6 {[%clk 0:02:43]} 15. Rc1 {[%clk 0:02:46]}  Ba6 {[%clk 0:02:40]} 16. Qd2 {[%clk 0:02:40]}  Rac8 {[%clk 0:02:38]} 17. g4 {[%clk 0:02:38]}  Nfe7 {[%clk 0:02:37]} 18. Bh6 {[%clk 0:02:38]}  Qd7 {[%clk 0:02:28]} 19. b3 {[%clk 0:02:20]}  f5 {[%clk 0:02:08]} 20. exf6 {[%clk 0:02:01]}  Rxf6 {[%clk 0:02:05]} 21. Ne5 {[%clk 0:01:56]}  Nxe5 {[%clk 0:01:55]} 22. dxe5 {[%clk 0:01:57]}  Rff8 {[%clk 0:01:50]} 23. Nc3 {[%clk 0:01:49]}  Nc6 {[%clk 0:01:38]} 24. Nxd5 {[%clk 0:01:26]}  exd5 {[%clk 0:01:28]} 25. Qxd5+ {[%clk 0:01:19]}  Qxd5 {[%clk 0:01:08]} 26. Bxd5+ {[%clk 0:01:20]}  Kh8 {[%clk 0:01:08]} 27. Bxg7+ {[%clk 0:01:20]}  Kxg7 {[%clk 0:01:08]} 28. Bxc6 {[%clk 0:01:15]}  Rc7 {[%clk 0:01:03]} 29. e6 {[%clk 0:01:07]}  Re7 {[%clk 0:01:03]} 30. Kg2 {[%clk 0:00:42]}  Rf4 {[%clk 0:00:57]} 31. Kg3 {[%clk 0:00:41]}  Rd4 {[%clk 0:00:53]} 32. Rcd1 {[%clk 0:00:04]}  Rxd1 {[%clk 0:00:51]} 33. Rxd1 {[%clk 0:00:05]}  Rxe6 {[%clk 0:00:51]} 34. Rd7+ {[%clk 0:00:05]}  Kf6 {[%clk 0:00:50]} 35. Bd5 {[%clk 0:00:05]}  Re2 {[%clk 0:00:38]} 36. f4 {[%clk 0:00:05]}  g5 {[%clk 0:00:33]} 37. Rf7+ {[%clk 0:00:04]}  Kg6 {[%clk 0:00:33]} 38. f5+ {[%clk 0:00:03]}  Kh6 {[%clk 0:00:34]} 39. Rf6+ {[%clk 0:00:03]}  Kg7 {[%clk 0:00:34]} 40. Rf7+ {[%clk 0:00:04]}  Kh6 {[%clk 0:00:34]} 41. Rxa7 {[%clk 0:00:05]}  Bd3 {[%clk 0:00:32]} 42. Rb7 {[%clk 0:00:05]}  Re3+ {[%clk 0:00:29]} 43. Kf2 {[%clk 0:00:05]}  Re2+ {[%clk 0:00:30]} 44. Kf3 {[%clk 0:00:06]}  Rxa2 {[%clk 0:00:29]} 45. Bg8 {[%clk 0:00:05]}  Bxf5 {[%clk 0:00:27]} 46. gxf5 {[%clk 0:00:04]}  g4+ {[%clk 0:00:28]} 47. Kxg4 {[%clk 0:00:05]}  Rg2+ {[%clk 0:00:28]} 48. Kh4 {[%clk 0:00:04]}  Rxg8 {[%clk 0:00:29]} 49. Rxb6+ {[%clk 0:00:05]}  Kg7 {[%clk 0:00:28]} 50. Rb4 {[%clk 0:00:06]}  Kf6 {[%clk 0:00:29]} 51. Rf4 {[%clk 0:00:06]}  Rc8 {[%clk 0:00:28]} 52. b4 {[%clk 0:00:06]}  Rc2 {[%clk 0:00:29]} 53. Kg3 {[%clk 0:00:06]}  Rb2 {[%clk 0:00:29]} 54. h4 {[%clk 0:00:05]}  h5 {[%clk 0:00:28]} 55. Kf3 {[%clk 0:00:05]}  Ke5 {[%clk 0:00:25]} 56. Rc4 {[%clk 0:00:05]}  Kxf5 {[%clk 0:00:24]} 57. Rc5+ {[%clk 0:00:05]}  Kg6 {[%clk 0:00:24]} 58. Rg5+ {[%clk 0:00:06]}  Kh6 {[%clk 0:00:23]} 59. b5 {[%clk 0:00:06]}  Rb4 {[%clk 0:00:24]} 60. Kg3 {[%clk 0:00:04]}  Rb3+ {[%clk 0:00:24]} 61. Kf4 {[%clk 0:00:04]}  Rb4+ {[%clk 0:00:25]} 62. Kg3 {[%clk 0:00:04]}  Rb3+ {[%clk 0:00:25]} 63. Kf2 {[%clk 0:00:04]}  Rb4 {[%clk 0:00:25]} 64. Ke3 {[%clk 0:00:03]}  Rxh4 {[%clk 0:00:25]} 65. Rc5 {[%clk 0:00:03]}  Rb4 {[%clk 0:00:25]} 66. Kd3 {[%clk 0:00:03]}  h4 {[%clk 0:00:25]} 67. Kc3 {[%clk 0:00:03]}  Rb1 {[%clk 0:00:25]} 68. Kc2 {[%clk 0:00:03]}  Rb4 {[%clk 0:00:25]} 69. Kc3 {[%clk 0:00:03]}  Rb1 {[%clk 0:00:26]} 70. Rc4 {[%clk 0:00:04]}  Rc1+ {[%clk 0:00:25]} 71. Kd3 {[%clk 0:00:03]}  Rxc4 {[%clk 0:00:26]} 72. Kxc4 {[%clk 0:00:04]}  h3 {[%clk 0:00:26]} 73. b6 {[%clk 0:00:04]}  h2 {[%clk 0:00:27]} 74. b7 {[%clk 0:00:05]}  h1=Q {[%clk 0:00:27]} 75. b8=Q {[%clk 0:00:06]}  Qc1+ {[%clk 0:00:27]} 76. Kd3 {[%clk 0:00:06]}  Qd1+ {[%clk 0:00:28]} 77. Ke3 {[%clk 0:00:07]}  Qe1+ {[%clk 0:00:28]} 78. Kd3 {[%clk 0:00:06]}  Qd1+ {[%clk 0:00:27]} 79. Ke3 {[%clk 0:00:06]} 1/2-1/2


[Site "https://www.chess.com"]

[Event "Titled Tuesday Blitz February 01 B 2022"]
[White "Cunha, Lucas Aguiar"]
[Black "Riehle, Marco"]
[WhiteFideId "2125404"]
[BlackFideId "12904392"]
[WhiteElo "2361"]
[BlackElo "2462"]
[Result "1-0"]
[Round "09"]
[TimeControl "180+1"]
[Date "2022.02.01"]
[WhiteClock "0:00:49"]
[BlackClock "0:00:54"]

1. e4 {[%clk 0:02:59]}  e5 {[%clk 0:02:59]} 2. Nf3 {[%clk 0:03:00]}  Nf6 {[%clk 0:02:59]} 3. Nc3 {[%clk 0:03:00]}  Nc6 {[%clk 0:02:59]} 4. Bb5 {[%clk 0:03:00]}  Bc5 {[%clk 0:02:59]} 5. Nxe5 {[%clk 0:03:00]}  O-O {[%clk 0:02:59]} 6. Nd3 {[%clk 0:03:00]}  Bd4 {[%clk 0:02:57]} 7. O-O {[%clk 0:02:51]}  Re8 {[%clk 0:02:58]} 8. Nf4 {[%clk 0:02:42]}  d6 {[%clk 0:02:48]} 9. d3 {[%clk 0:02:36]}  Bg4 {[%clk 0:02:45]} 10. Qd2 {[%clk 0:02:36]}  Re5 {[%clk 0:02:39]} 11. Ncd5 {[%clk 0:02:22]}  a6 {[%clk 0:02:31]} 12. Bc4 {[%clk 0:02:17]}  h6 {[%clk 0:02:22]} 13. c3 {[%clk 0:02:11]}  Ba7 {[%clk 0:02:21]} 14. Nxf6+ {[%clk 0:02:09]}  Qxf6 {[%clk 0:02:19]} 15. Nd5 {[%clk 0:02:09]}  Qh4 {[%clk 0:02:16]} 16. Qf4 {[%clk 0:02:00]}  Re6 {[%clk 0:01:37]} 17. h3 {[%clk 0:01:53]}  Rg6 {[%clk 0:01:37]} 18. hxg4 {[%clk 0:01:45]}  Rxg4 {[%clk 0:01:38]} 19. Qh2 {[%clk 0:01:45]}  Qd8 {[%clk 0:01:35]} 20. Be3 {[%clk 0:01:40]}  Ne5 {[%clk 0:01:34]} 21. f3 {[%clk 0:01:31]}  Rg6 {[%clk 0:01:19]} 22. Bxa7 {[%clk 0:01:30]}  Rxa7 {[%clk 0:01:20]} 23. Ne3 {[%clk 0:01:25]}  c6 {[%clk 0:01:19]} 24. d4 {[%clk 0:01:25]}  Nxc4 {[%clk 0:01:15]} 25. Nxc4 {[%clk 0:01:26]}  b5 {[%clk 0:01:15]} 26. Ne3 {[%clk 0:01:24]}  a5 {[%clk 0:01:15]} 27. Nf5 {[%clk 0:01:20]}  Qg5 {[%clk 0:01:13]} 28. Nxd6 {[%clk 0:01:15]}  a4 {[%clk 0:01:10]} 29. a3 {[%clk 0:01:13]}  Rd7 {[%clk 0:01:07]} 30. f4 {[%clk 0:01:04]}  Qg4 {[%clk 0:01:07]} 31. e5 {[%clk 0:01:04]}  c5 {[%clk 0:01:02]} 32. f5 {[%clk 0:00:56]}  Rg5 {[%clk 0:01:01]} 33. Rf4 {[%clk 0:00:56]}  Qe2 {[%clk 0:01:01]} 34. Rf2 {[%clk 0:00:56]}  Qe3 {[%clk 0:01:00]} 35. Qf4 {[%clk 0:00:56]}  Qd3 {[%clk 0:00:57]} 36. Rd2 {[%clk 0:00:52]}  Qh3 {[%clk 0:00:54]} 37. Qxg5 {[%clk 0:00:49]} 1-0


[Site "https://www.chess.com"]

[Event "Titled Tuesday Blitz February 01 B 2022"]
[White "De La Colina, Nicolas"]
[Black "Yuan, Qingyu"]
[WhiteFideId "30946921"]
[BlackFideId "8609772"]
[WhiteElo "2046"]
[BlackElo "2359"]
[Result "1-0"]
[Round "09"]
[TimeControl "180+1"]
[Date "2022.02.01"]
[WhiteClock "0:00:09"]
[BlackClock "0:00:31"]

1. e4 {[%clk 0:03:00]}  c6 {[%clk 0:02:59]} 2. d4 {[%clk 0:02:57]}  d5 {[%clk 0:03:00]} 3. exd5 {[%clk 0:02:58]}  cxd5 {[%clk 0:03:00]} 4. Bd3 {[%clk 0:02:59]}  Nc6 {[%clk 0:03:00]} 5. c3 {[%clk 0:03:00]}  Nf6 {[%clk 0:03:01]} 6. Bf4 {[%clk 0:02:59]}  Bg4 {[%clk 0:03:01]} 7. Qb3 {[%clk 0:02:59]}  Qd7 {[%clk 0:03:01]} 8. Nd2 {[%clk 0:02:59]}  e6 {[%clk 0:03:02]} 9. Ngf3 {[%clk 0:02:59]}  Bd6 {[%clk 0:03:02]} 10. Bg3 {[%clk 0:02:58]}  O-O {[%clk 0:03:01]} 11. O-O {[%clk 0:02:57]}  Bxg3 {[%clk 0:02:53]} 12. hxg3 {[%clk 0:02:58]}  Rab8 {[%clk 0:02:53]} 13. Rae1 {[%clk 0:02:20]}  Bxf3 {[%clk 0:02:44]} 14. Nxf3 {[%clk 0:02:21]}  Qc7 {[%clk 0:02:44]} 15. Qd1 {[%clk 0:02:20]}  b5 {[%clk 0:02:42]} 16. g4 {[%clk 0:02:16]}  b4 {[%clk 0:02:33]} 17. g5 {[%clk 0:02:15]}  Nd7 {[%clk 0:02:32]} 18. Qc2 {[%clk 0:01:46]}  g6 {[%clk 0:02:32]} 19. g3 {[%clk 0:01:44]}  Rfc8 {[%clk 0:02:29]} 20. Qd2 {[%clk 0:01:39]}  bxc3 {[%clk 0:02:27]} 21. bxc3 {[%clk 0:01:40]}  Na5 {[%clk 0:02:22]} 22. Rc1 {[%clk 0:01:26]}  Rb6 {[%clk 0:02:22]} 23. Kg2 {[%clk 0:01:18]}  Rc6 {[%clk 0:02:17]} 24. Rh1 {[%clk 0:01:01]}  Rxc3 {[%clk 0:01:53]} 25. Rce1 {[%clk 0:01:01]}  Ra3 {[%clk 0:01:34]} 26. Rh6 {[%clk 0:00:48]}  Qc3 {[%clk 0:01:26]} 27. Reh1 {[%clk 0:00:27]}  Qxd3 {[%clk 0:01:17]} 28. Qxd3 {[%clk 0:00:27]}  Rxd3 {[%clk 0:01:17]} 29. Rxh7 {[%clk 0:00:27]}  Nf8 {[%clk 0:01:08]} 30. Rh8+ {[%clk 0:00:22]}  Kg7 {[%clk 0:01:07]} 31. Ne5 {[%clk 0:00:22]}  Rxd4 {[%clk 0:01:00]} 32. Nd7 {[%clk 0:00:18]}  Rg4 {[%clk 0:00:40]} 33. Nxf8 {[%clk 0:00:12]}  Rxg5 {[%clk 0:00:36]} 34. Nxe6+ {[%clk 0:00:08]}  Kf6 {[%clk 0:00:34]} 35. Nxg5 {[%clk 0:00:07]}  Rxh8 {[%clk 0:00:32]} 36. Rxh8 {[%clk 0:00:08]}  Kxg5 {[%clk 0:00:33]} 37. Rd8 {[%clk 0:00:08]}  Kf6 {[%clk 0:00:31]} 38. Rxd5 {[%clk 0:00:09]}  Nc6 {[%clk 0:00:31]} 39. Rd6+ {[%clk 0:00:09]} 1-0


[Site "https://www.chess.com"]

[Event "Titled Tuesday Blitz February 01 B 2022"]
[White "Golubka, Petro"]
[Black "Barp, Alberto"]
[WhiteFideId "14114224"]
[BlackFideId "872555"]
[WhiteElo "2392"]
[BlackElo "2229"]
[Result "0-1"]
[Round "09"]
[TimeControl "180+1"]
[Date "2022.02.01"]
[WhiteClock "0:01:50"]
[BlackClock "0:00:39"]

1. a3 {[%clk 0:02:56]}  a6 {[%clk 0:02:56]} 2. h3 {[%clk 0:02:55]}  b5 {[%clk 0:02:53]} 3. b3 {[%clk 0:02:51]}  Bb7 {[%clk 0:02:53]} 4. Bb2 {[%clk 0:02:52]}  Nf6 {[%clk 0:02:53]} 5. d3 {[%clk 0:02:52]}  e6 {[%clk 0:02:53]} 6. Nd2 {[%clk 0:02:52]}  c5 {[%clk 0:02:53]} 7. e4 {[%clk 0:02:52]}  d6 {[%clk 0:02:52]} 8. g4 {[%clk 0:02:49]}  Nc6 {[%clk 0:02:50]} 9. Bg2 {[%clk 0:02:50]}  h5 {[%clk 0:02:46]} 10. g5 {[%clk 0:02:49]}  Nd7 {[%clk 0:02:45]} 11. h4 {[%clk 0:02:48]}  Nde5 {[%clk 0:02:44]} 12. Nh3 {[%clk 0:02:44]}  Ng6 {[%clk 0:02:42]} 13. Ng1 {[%clk 0:02:43]}  Qc7 {[%clk 0:02:27]} 14. Ne2 {[%clk 0:02:41]}  O-O-O {[%clk 0:02:26]} 15. c4 {[%clk 0:02:42]}  Nce5 {[%clk 0:02:24]} 16. Qc2 {[%clk 0:02:40]}  d5 {[%clk 0:02:10]} 17. cxd5 {[%clk 0:02:38]}  exd5 {[%clk 0:02:10]} 18. O-O-O {[%clk 0:02:38]}  Ng4 {[%clk 0:02:02]} 19. Rdf1 {[%clk 0:02:37]}  d4 {[%clk 0:01:59]} 20. Bh3 {[%clk 0:02:28]}  Kb8 {[%clk 0:01:59]} 21. Bxg4 {[%clk 0:02:27]}  hxg4 {[%clk 0:01:59]} 22. Rfg1 {[%clk 0:02:27]}  Bc8 {[%clk 0:01:31]} 23. h5 {[%clk 0:02:26]}  Ne5 {[%clk 0:01:26]} 24. Kb1 {[%clk 0:02:26]}  Be7 {[%clk 0:01:22]} 25. g6 {[%clk 0:02:13]}  fxg6 {[%clk 0:01:18]} 26. hxg6 {[%clk 0:02:14]}  Rxh1 {[%clk 0:01:16]} 27. Rxh1 {[%clk 0:02:15]}  Nxg6 {[%clk 0:01:16]} 28. b4 {[%clk 0:02:12]}  Ne5 {[%clk 0:01:03]} 29. bxc5 {[%clk 0:02:11]}  Bxc5 {[%clk 0:01:00]} 30. Rc1 {[%clk 0:02:08]}  Bb6 {[%clk 0:00:55]} 31. Qxc7+ {[%clk 0:02:00]}  Bxc7 {[%clk 0:00:56]} 32. Nxd4 {[%clk 0:02:00]}  Nxd3 {[%clk 0:00:53]} 33. Nc6+ {[%clk 0:02:00]}  Ka8 {[%clk 0:00:53]} 34. Nxd8 {[%clk 0:02:00]}  Nxc1 {[%clk 0:00:53]} 35. Kxc1 {[%clk 0:01:56]}  Bxd8 {[%clk 0:00:53]} 36. Bxg7 {[%clk 0:01:57]}  Bb6 {[%clk 0:00:50]} 37. Nf1 {[%clk 0:01:50]}  Bxf2 {[%clk 0:00:50]} 38. Be5 {[%clk 0:01:50]}  Bb7 {[%clk 0:00:48]} 39. Bg3 {[%clk 0:01:51]}  Bc5 {[%clk 0:00:47]} 40. Kb2 {[%clk 0:01:50]}  Bxe4 {[%clk 0:00:47]} 41. Nd2 {[%clk 0:01:51]}  Bd5 {[%clk 0:00:47]} 42. Nb3 {[%clk 0:01:49]}  Bxb3 {[%clk 0:00:44]} 43. Kxb3 {[%clk 0:01:50]}  Kb7 {[%clk 0:00:42]} 44. a4 {[%clk 0:01:51]}  b4 {[%clk 0:00:41]} 45. Kc4 {[%clk 0:01:51]}  Kc6 {[%clk 0:00:42]} 46. a5 {[%clk 0:01:50]}  Bd6 {[%clk 0:00:41]} 47. Be1 {[%clk 0:01:49]}  g3 {[%clk 0:00:41]} 48. Bxg3 {[%clk 0:01:49]}  Bxg3 {[%clk 0:00:40]} 49. Kxb4 {[%clk 0:01:50]}  Be1+ {[%clk 0:00:39]} 0-1


[Site "https://www.chess.com"]

[Event "Titled Tuesday Blitz February 01 B 2022"]
[White "Loay, Sameer"]
[Black "Gaehwiler, Gabriel"]
[WhiteFideId "8104239"]
[BlackFideId "1314530"]
[WhiteElo "2040"]
[BlackElo "2383"]
[Result "0-1"]
[Round "09"]
[TimeControl "180+1"]
[Date "2022.02.01"]
[WhiteClock "0:00:20"]
[BlackClock "0:01:33"]

1. Nf3 {[%clk 0:03:00]}  Nf6 {[%clk 0:02:59]} 2. g3 {[%clk 0:03:01]}  b6 {[%clk 0:02:59]} 3. Bg2 {[%clk 0:03:02]}  Bb7 {[%clk 0:03:00]} 4. O-O {[%clk 0:03:03]}  g6 {[%clk 0:03:01]} 5. d3 {[%clk 0:03:04]}  Bg7 {[%clk 0:03:01]} 6. e4 {[%clk 0:03:04]}  O-O {[%clk 0:03:02]} 7. c3 {[%clk 0:03:05]}  c5 {[%clk 0:03:02]} 8. Nbd2 {[%clk 0:03:06]}  Nc6 {[%clk 0:03:02]} 9. e5 {[%clk 0:03:05]}  Nd5 {[%clk 0:02:59]} 10. Re1 {[%clk 0:02:59]}  d6 {[%clk 0:02:59]} 11. e6 {[%clk 0:02:57]}  fxe6 {[%clk 0:02:51]} 12. Ng5 {[%clk 0:02:58]}  Nc7 {[%clk 0:02:50]} 13. Nxe6 {[%clk 0:02:51]}  Nxe6 {[%clk 0:02:50]} 14. Rxe6 {[%clk 0:02:52]}  Qd7 {[%clk 0:02:45]} 15. Bd5 {[%clk 0:01:45]}  Kh8 {[%clk 0:02:43]} 16. Qa4 {[%clk 0:01:46]}  Rf5 {[%clk 0:02:28]} 17. Qe4 {[%clk 0:01:39]}  Rxd5 {[%clk 0:02:21]} 18. Nc4 {[%clk 0:01:10]}  Ne5 {[%clk 0:02:07]} 19. Nxe5 {[%clk 0:00:54]}  Qxe6 {[%clk 0:01:56]} 20. c4 {[%clk 0:00:48]}  Qxe5 {[%clk 0:01:54]} 21. cxd5 {[%clk 0:00:47]}  Bxd5 {[%clk 0:01:50]} 22. Qxe5 {[%clk 0:00:46]}  Bxe5 {[%clk 0:01:51]} 23. Bg5 {[%clk 0:00:46]}  Bf6 {[%clk 0:01:51]} 24. Bxf6+ {[%clk 0:00:43]}  exf6 {[%clk 0:01:51]} 25. Re1 {[%clk 0:00:44]}  Bxa2 {[%clk 0:01:48]} 26. Re7 {[%clk 0:00:44]}  Kg8 {[%clk 0:01:45]} 27. f4 {[%clk 0:00:44]}  Bf7 {[%clk 0:01:44]} 28. Rd7 {[%clk 0:00:44]}  d5 {[%clk 0:01:44]} 29. Kf2 {[%clk 0:00:44]}  Kf8 {[%clk 0:01:44]} 30. f5 {[%clk 0:00:42]}  Ke8 {[%clk 0:01:42]} 31. Rc7 {[%clk 0:00:41]}  gxf5 {[%clk 0:01:42]} 32. Kf3 {[%clk 0:00:42]}  Rd8 {[%clk 0:01:42]} 33. Kf4 {[%clk 0:00:42]}  Rd7 {[%clk 0:01:42]} 34. Rc8+ {[%clk 0:00:42]}  Ke7 {[%clk 0:01:42]} 35. Kxf5 {[%clk 0:00:41]}  Bg6+ {[%clk 0:01:43]} 36. Kf4 {[%clk 0:00:42]}  Bxd3 {[%clk 0:01:43]} 37. g4 {[%clk 0:00:41]}  Bg6 {[%clk 0:01:44]} 38. h4 {[%clk 0:00:41]}  d4 {[%clk 0:01:44]} 39. h5 {[%clk 0:00:42]}  Bf7 {[%clk 0:01:44]} 40. b4 {[%clk 0:00:32]}  d3 {[%clk 0:01:43]} 41. bxc5 {[%clk 0:00:32]}  bxc5 {[%clk 0:01:43]} 42. g5 {[%clk 0:00:31]}  fxg5+ {[%clk 0:01:42]} 43. Ke5 {[%clk 0:00:19]}  d2 {[%clk 0:01:42]} 44. h6 {[%clk 0:00:19]}  Rd5+ {[%clk 0:01:40]} 45. Ke4 {[%clk 0:00:19]}  d1=Q {[%clk 0:01:40]} 46. Rc7+ {[%clk 0:00:20]}  Kd8 {[%clk 0:01:33]} 0-1


[Site "https://www.chess.com"]

[Event "Titled Tuesday Blitz February 01 B 2022"]
[White "Mirzoev, Azer"]
[Black "Ronka, Erik"]
[WhiteFideId "13400304"]
[BlackFideId "505080"]
[WhiteElo "2525"]
[BlackElo "2264"]
[Result "1-0"]
[Round "09"]
[TimeControl "180+1"]
[Date "2022.02.01"]
[WhiteClock "0:00:40"]
[BlackClock "0:00:07"]

1. Nf3 {[%clk 0:03:00]}  Nf6 {[%clk 0:02:59]} 2. b4 {[%clk 0:03:00]}  g6 {[%clk 0:03:00]} 3. Bb2 {[%clk 0:03:00]}  Bg7 {[%clk 0:03:01]} 4. c4 {[%clk 0:03:00]}  O-O {[%clk 0:03:02]} 5. g3 {[%clk 0:03:00]}  d6 {[%clk 0:03:02]} 6. Bg2 {[%clk 0:03:00]}  e5 {[%clk 0:03:02]} 7. O-O {[%clk 0:02:59]}  Nc6 {[%clk 0:02:55]} 8. b5 {[%clk 0:02:59]}  Ne7 {[%clk 0:02:56]} 9. d4 {[%clk 0:02:58]}  exd4 {[%clk 0:02:52]} 10. Nxd4 {[%clk 0:02:58]}  Nd7 {[%clk 0:02:28]} 11. Nd2 {[%clk 0:02:57]}  Nc5 {[%clk 0:02:26]} 12. a4 {[%clk 0:02:57]}  Nf5 {[%clk 0:02:25]} 13. e3 {[%clk 0:02:53]}  a5 {[%clk 0:02:12]} 14. Ra2 {[%clk 0:02:35]}  Re8 {[%clk 0:02:09]} 15. N2b3 {[%clk 0:02:27]}  Nxb3 {[%clk 0:01:34]} 16. Nxb3 {[%clk 0:02:23]}  Bxb2 {[%clk 0:01:30]} 17. Rxb2 {[%clk 0:02:24]}  Qf6 {[%clk 0:01:24]} 18. Rd2 {[%clk 0:02:23]}  Qc3 {[%clk 0:01:13]} 19. Qc2 {[%clk 0:02:21]}  Qxc2 {[%clk 0:01:07]} 20. Rxc2 {[%clk 0:02:22]}  Rb8 {[%clk 0:00:57]} 21. c5 {[%clk 0:02:22]}  Be6 {[%clk 0:00:51]} 22. Nxa5 {[%clk 0:02:19]}  dxc5 {[%clk 0:00:50]} 23. Nxb7 {[%clk 0:02:18]}  c4 {[%clk 0:00:50]} 24. Nc5 {[%clk 0:02:18]}  Nd6 {[%clk 0:00:48]} 25. Rd1 {[%clk 0:02:03]}  Bf5 {[%clk 0:00:45]} 26. Rc3 {[%clk 0:02:01]}  Bg4 {[%clk 0:00:42]} 27. Rd4 {[%clk 0:02:00]}  Be2 {[%clk 0:00:40]} 28. h4 {[%clk 0:01:57]}  Nf5 {[%clk 0:00:38]} 29. Rd2 {[%clk 0:01:52]}  Bh5 {[%clk 0:00:27]} 30. Rxc4 {[%clk 0:01:52]}  Nd6 {[%clk 0:00:27]} 31. Rc3 {[%clk 0:01:47]}  Re5 {[%clk 0:00:26]} 32. Na6 {[%clk 0:01:46]}  Nxb5 {[%clk 0:00:21]} 33. axb5 {[%clk 0:01:43]}  Rbxb5 {[%clk 0:00:22]} 34. Nxc7 {[%clk 0:01:41]}  Rb1+ {[%clk 0:00:19]} 35. Kh2 {[%clk 0:01:41]}  Bg4 {[%clk 0:00:19]} 36. Nd5 {[%clk 0:01:39]}  Kg7 {[%clk 0:00:18]} 37. Nf4 {[%clk 0:01:37]}  Bf5 {[%clk 0:00:17]} 38. Rc7 {[%clk 0:01:30]}  h6 {[%clk 0:00:17]} 39. Ne2 {[%clk 0:01:18]}  g5 {[%clk 0:00:17]} 40. Nd4 {[%clk 0:01:16]}  Bg4 {[%clk 0:00:14]} 41. Ra2 {[%clk 0:00:59]}  gxh4 {[%clk 0:00:12]} 42. gxh4 {[%clk 0:00:59]}  h5 {[%clk 0:00:11]} 43. Raa7 {[%clk 0:00:56]}  Kg6 {[%clk 0:00:10]} 44. Rxf7 {[%clk 0:00:55]}  Rb2 {[%clk 0:00:11]} 45. Rg7+ {[%clk 0:00:52]}  Kh6 {[%clk 0:00:11]} 46. Rh7+ {[%clk 0:00:51]}  Kg6 {[%clk 0:00:11]} 47. Rag7+ {[%clk 0:00:51]}  Kf6 {[%clk 0:00:11]} 48. Kg3 {[%clk 0:00:49]}  Bf5 {[%clk 0:00:08]} 49. Rf7+ {[%clk 0:00:47]}  Kg6 {[%clk 0:00:09]} 50. Nxf5 {[%clk 0:00:46]}  Rxf2 {[%clk 0:00:07]} 51. Rhg7# {[%clk 0:00:40]} 1-0


[Site "https://www.chess.com"]